Cogmind - Beta 16.1 @@@ ROGUE MODE // 2026.04.14 @ 23:06:12 Player: mephiles96 Result: Destroyed by exploding Nuclear Reactor Performance ------------- Evolutions (5) 2500 Regions Visited (10) 2000 Robots Destroyed (39) 195 Value Destroyed (1284) 1284 Prototype IDs (11) 220 Alien Tech Used (0) 0 Bonus (1531) 1531 TOTAL SCORE: 7730 Bonus ------- Follower Combat Kills 431 Registered with UFD 300 Met Optimus in HQ 500 Met Data Miner 300 Cogmind --------- Core Integrity 0/1000 Matter 290/300 Energy 100/100 System Corruption 5% Temperature Cool (0) Movement Core (50) Location -5/Factory Parts ------- > --- POWER (1) -------- (None) > --- PROPULSION (6) --- (None) > --- UTILITY (8) ------ (None) > --- WEAPON (2) ------- (None) > --- INVENTORY (5) ---- Layered Heavy Armor Plating Heart of Steel Peak State ------------ > --- POWER ------------ Micro Fission Core > --- PROPULSION ------- Improved Titanium Leg Improved Gravmag System Antigrav System Antigrav System Antigrav System Antigrav System > --- UTILITY ---------- Advanced Heat Sink Huge Storage Unit Improved Signal Interpreter Advanced Terrain Scanner Surveybot 17 Chip Makeshift Hacking Suite Improved Corruption Screen Amulet of Y3-NDR > --- WEAPON ----------- Heavy Flail > --- INVENTORY -------- Light Fission Core VTOL Module Compact Battery Subdweller Optics Improved Signal Interpreter Seismic Detector ECM Suite Layered Heavy Armor Plating Layered Heavy Armor Plating Makeshift Thermal Plating Improved Thermal Shield EM Shield Improved System Shield Heart of Steel Improved Arc Projector Pulse Rifle Overtuned Pulse Rifle Heavy Battle Rifle Flak Cannon Mass Driver DRS Beacon [Rating: 92] Favorites ----------- Power Reinforced Ion Engine Engine Reinforced Ion Engine Power Core Light Fission Core Reactor Light Antimatter Reactor Propulsion Wheel Treads Light Treads Leg Overtuned Titanium Leg Wheel Wheel Hover Unit Antigrav System Utility Large Storage Unit Device Seismic Detector Storage Large Storage Unit Processor Surveybot 17 Chip Hackware Makeshift Hacking Suite Protection Makeshift Thermal Plating Weapon Heavy Flail Energy Gun Overtuned Pulse Rifle Ballistic Gun Light Assault Rifle Ballistic Cannon Flak Cannon Launcher Grenade Launcher Special Weapon Mining Laser Impact Weapon Heavy Flail Build | -11 -10 -10 -10 -9 -6 -6 -6 -6 -5 -5 ------- Run | Yrd Mat Min Sub Scr Fac Low Low Dat Pro Fac Slots Evolved 10 | . . . . . 8 . . . . 2 Power . | . . . . . . . . . . . Propulsion 4 | . . . . . 3 . . . . 1 Utility 6 | . . . . . 5 . . . . 1 Weapon . | . . . . . . . . . . . Parts Attached 65 | 8 9 1 3 11 10 . 4 . 3 16 Power 9 | 1 1 . . 1 1 . . . . 5 Engine 4 | 1 1 . . 1 1 . . . . . Core 4 | . . . . . . . . . . 4 Reactor 1 | . . . . . . . . . . 1 Propulsion 21 | 2 2 . 2 5 1 . 1 . 1 7 Treads 3 | 2 1 . . . . . . . . . Leg 5 | . . . . 4 . . . . 1 . Wheel 6 | . 1 . 2 1 1 . 1 . . . Hover 7 | . . . . . . . . . . 7 Flight . | . . . . . . . . . . . Utility 20 | 3 2 . . 2 7 . 2 . 1 3 Device 10 | 2 . . . 2 3 . 1 . 1 1 Storage 3 | 1 1 . . . 1 . . . . . Processor 3 | . . . . . 2 . . . . 1 Hackware 1 | . . . . . . . . . . 1 Protection 3 | . 1 . . . 1 . 1 . . . Artifact . | . . . . . . . . . . . Weapon 15 | 2 4 1 1 3 1 . 1 . 1 1 Energy Gun 6 | . 2 1 . 1 . . 1 . . 1 Energy Cannon . | . . . . . . . . . . . Ballistic Gun 4 | 2 . . . . 1 . . . 1 . Ballistic Cannon 1 | . . . 1 . . . . . . . Launcher 2 | . 1 . . 1 . . . . . . Special Weapon 1 | . 1 . . . . . . . . . Impact Weapon 1 | . . . . 1 . . . . . . Slashing Weapon . | . . . . . . . . . . . Piercing Weapon . | . . . . . . . . . . . Special Melee Weapon . | . . . . . . . . . . . Unidentified Prototypes 1 | . . . . . . . . . 1 . Corrupted Parts 1 | . . . . . . . . . . 1 System Corruption 2 | . . . . . . . . . . 2 Parts Lost 31 | . 1 . 4 . 1 . 2 . 6 17 Power 2 | . . . . . . . . . 1 1 Propulsion 14 | . 1 . 1 . . . 1 . 4 7 Utility 8 | . . . . . 1 . 1 . . 6 Weapon 7 | . . . 3 . . . . . 1 3 Highest Loss Streak 13 | . 1 . 2 . 1 . 2 . 6 13 To Critical Strikes . | . . . . . . . . . . . Average Backups 15 | 6 14 14 14 14 12 14 20 20 18 17 Power . | . 1 1 1 . . . . . . . Propulsion 1 | 3 2 1 . . . 1 2 2 1 1 Utility 9 | . 8 10 10 10 7 9 10 10 10 9 Weapon 3 | 1 2 2 2 2 3 4 6 7 6 5 Tool/Special . | . . . . . . . . . . . Unused Backups 35 | 4 3 1 . 8 . . 4 . . 15 Power 3 | . 1 . . 1 . . . . . 1 Propulsion 4 | 1 1 . . . . . . . . 2 Utility 18 | 1 . 1 . 6 . . 2 . . 8 Weapon 9 | 2 1 . . 1 . . 2 . . 3 Tool/Special 1 | . . . . . . . . . . 1 Average Slot Usage (%) 81 | . 99 100 92 71 83 86 85 86 63 79 Engine 9 | . 14 14 14 14 6 6 6 6 . . Treads 2 | . 23 14 4 . . . . . . . Leg 4 | . . . . 1 13 13 11 6 5 3 Wheel 14 | . 3 14 18 23 11 13 14 20 2 . Hover 2 | . . . . . . . . . . 21 Device 16 | . 12 14 14 14 20 20 18 20 20 17 Storage 10 | . 14 14 14 14 6 6 6 6 6 4 Processor 5 | . . . . . 9 13 13 13 13 12 Energy Gun 5 | . 10 28 12 1 6 6 6 6 . . Ballistic Gun 1 | . 9 . . . . . . . 5 . Ballistic Cannon 1 | . . . 5 . . . 4 . . . Special Weapon 1 | . 6 . 5 . . . . . . . Impact Weapon 2 | . . . . 1 5 6 1 6 6 4 Peak Build Rating 92 | 8 11 12 16 22 58 60 62 61 61 92 Average Rating 32 | 6 9 10 11 11 51 58 60 61 53 77 On Entrance 32 | . 8 10 12 15 21 58 60 61 61 53 Avg Prop Armor Cover (%) 9 | . 11 12 10 10 10 10 7 5 5 6 Naked Turns 40 | . . . . . . . . . . 40 Heaviest Build 112 | 13 39 36 40 40 105 105 112 106 106 101 Greatest Support 61 | 40 40 10 30 38 38 38 48 48 48 61 Greatest Overweight (x) 27 | . 3 3 3 10 3 2 2 2 4 27 Average Overweight (x) 1 | . . 3 2 . . 2 2 2 3 1 Largest Inventory Capacity 25 | 8 15 15 15 15 25 25 25 25 25 25 Average Capacity 18 | 7 14 15 15 15 15 25 25 25 25 24 Most Carried 25 | 8 15 15 15 15 15 18 25 25 25 25 Average Carried 16 | 6 14 14 14 14 13 15 23 25 23 23 Final Capacity 25 | 8 15 15 15 15 25 25 25 25 25 5 Final Carried 25 | 8 15 15 14 15 15 18 25 25 23 5 Scrap Suit Usage (%) 33 | . . . . . 99 100 100 100 100 8 Parts Cannibalized 3 | . . . . . . 1 2 . . . Class Distribution -------------------- 63% | Mutant 16% | Scrapper 9% | Scavenger-Mutant 5% | Scavenger-Scrapper 4% | Assassin Dominant Class ---------------- Mutant | -10/Materials Mutant | -10/Mines Mutant | -10/Subcaves Mutant | -9/Scraptown Scavenger-Scrapper | -6/Factory Scrapper | -6/Lower Caves Scrapper | -6/Lower Caves Assassin | -6/Data Miner Mutant | -5/Proximity Caves Scavenger-Mutant | -5/Factory Resources | -11 -10 -10 -10 -9 -6 -6 -6 -6 -5 -5 ----------- Run | Yrd Mat Min Sub Scr Fac Low Low Dat Pro Fac Matter Collected 1591 | 338 149 . 277 273 125 30 115 . 105 179 Remotely . | . . . . . . . . . . . Salvage Created 1280 | 242 332 . 157 60 17 . 202 . 203 67 Parts 65 | 21 14 . 9 . 2 . 10 . 6 3 Haulers Intercepted 1 | . 1 . . . . . . . . . Recyclers Shooed 1 | 1 . . . . . . . . . . Parts Field Recycled . | . . . . . . . . . . . Retrieved Matter . | . . . . . . . . . . . Parts Self-Destructed 31 | . . . 15 . . 4 6 . 6 . Prevented . | . . . . . . . . . . . Parts Restored . | . . . . . . . . . . . Kills | -11 -10 -10 -10 -9 -6 -6 -6 -6 -5 -5 ------- Run | Yrd Mat Min Sub Scr Fac Low Low Dat Pro Fac Combat Hostiles Destroyed 27 | . 6 . 7 2 1 . 6 . 4 1 Melee 3 | . . . . . . . 2 . . 1 Guns 10 | . 3 . 3 . 1 . . . 3 . Cannons 5 | . . . 2 . . . 3 . . . AOE 5 | . 3 . 2 . . . . . . . Classes Destroyed 13 | 2 3 . 1 2 1 . 1 . 1 2 Worker 1 | . . . . . . . . . . 1 Tunneler 7 | 7 . . . . . . . . . . Hauler 1 | . 1 . . . . . . . . . Recycler 2 | 1 1 . . . . . . . . . Watcher 1 | . 1 . . . . . . . . . Swarmer 4 | . . . . . 1 . 3 . . . Grunt 13 | . 6 . 2 . . . 2 . 3 . Duelist 1 | . . . . . . . 1 . . . Hunter 1 | . . . . . . . . . . 1 Programmer 1 | . . . . . . . . . 1 . Subdweller 5 | . . . 5 . . . . . . . Federalist 1 | . . . . 1 . . . . . . Guru 1 | . . . . 1 . . . . . . Best Kill Streak 6 | 2 6 . 3 1 1 . 3 . 3 1 Combat Bots Only 4 | . 4 . 3 1 1 . 3 . 3 1 Max Kills in Single Turn 2 | 1 2 . 1 1 1 . 2 . 1 1 Gunslinging . | . . . . . . . . . . . Exploded 2 | . 2 . 1 . . . . . . . Melee 1 | . . . . . . . 1 . . 1 Uniques/NPCs Destroyed . | . . . . . . . . . . . Combat | -11 -10 -10 -10 -9 -6 -6 -6 -6 -5 -5 -------- Run | Yrd Mat Min Sub Scr Fac Low Low Dat Pro Fac Hostile Shots Fired 314 | . 46 . 17 23 12 . 37 . 75 104 Missed 84 | . 11 . 7 5 2 . 8 . 23 28 Hits 230 | . 35 . 10 18 10 . 29 . 52 76 Melee 1 | . . . . . . . 1 . . . Projectile 229 | . 35 . 10 18 10 . 28 . 52 76 Critical Strikes 13 | . 1 . . . . . 2 . 3 7 Damage Taken 4609 | . 452 . 228 178 162 . 507 . 1006 2076 Core 1457 | . 76 . 10 55 16 . 31 . 233 1036 Absorbed by Shields . | . . . . . . . . . . . Ignored by Resistances 34 | . . . . . 4 . 30 . . . Regen/Repaired (Parts) 26 | . . . . . . 6 20 . . . Core Remaining (%) 70 | 100 . . . 43 . . . . 67 . Volleys Fired 176 | 29 57 . 48 5 4 . 11 . 22 . Largest 2 | 2 2 . 2 1 2 . 2 . 1 . Hottest 160 | 40 100 . 137 37 108 . 160 . 80 . Shots Fired 223 | 58 61 . 52 5 8 . 17 . 22 . Gun 160 | 58 50 . 10 . 8 . 12 . 22 . Cannon 17 | . . . 7 5 . . 5 . . . Launcher 22 | . 4 . 18 . . . . . . . Special 24 | . 7 . 17 . . . . . . . Kinetic 93 | 58 4 . 7 5 4 . 5 . 10 . Thermal 95 | . 40 . 27 . 4 . 12 . 12 . Explosive 22 | . 4 . 18 . . . . . . . Electromagnetic 13 | . 13 . . . . . . . . . Robot Hit Streak 11 | 5 7 . 9 . 2 . 7 . 11 . Robot Miss Streak 6 | 3 2 . 2 . 6 . 6 . 3 . Penetration Max . | . . . . . . . . . . . Secondary Targets . | . . . . . . . . . . . Shots Hit Robots 140 | 30 37 . 16 9 5 . 20 . 20 3 Core Hits 83 | 14 12 1 16 . 4 . 13 . 23 . Critical Kills . | . . . . . . . . . . . Critical Parts Destroyed 1 | 1 . . . . . . . . . . Critical Strikes 2 | 1 . . 1 . . . . . . . Burn 1 | . . . 1 . . . . . . . Destroy 1 | 1 . . . . . . . . . . Melee Attacks 62 | . . . . 30 10 1 6 . 8 7 Impact 62 | . . . . 30 10 1 6 . 8 7 Slashing . | . . . . . . . . . . . Piercing . | . . . . . . . . . . . Sneak Attacks 1 | . . . . . . . . . . 1 Combat Hostiles . | . . . . . . . . . . . Follow-up Attacks . | . . . . . . . . . . . Damage Inflicted 3731 | 251 811 1 802 440 73 . 507 . 610 236 Guns 1527 | 251 400 . 172 . 73 . 203 . 428 . Cannons 154 | . . . 83 . . . 71 . . . Explosions 958 | . 411 . 547 . . . . . . . Melee 1090 | . . . . 440 . . 233 . 182 235 Ramming 2 | . . 1 . . . . . . . 1 Kinetic 726 | 251 18 . 83 . 50 . 71 . 253 . Thermal 911 | . 338 . 172 . 23 . 203 . 175 . Explosive 881 | . 334 . 547 . . . . . . . Electromagnetic 121 | . 121 . . . . . . . . . Impact 1090 | . . . . 440 . . 233 . 182 235 Slashing . | . . . . . . . . . . . Piercing . | . . . . . . . . . . . Highest Corruption 6 | . . . . . . . . . 6 5 Average Corruption 5 | . . . . . . . . . 5 3 Corruption Purged . | . . . . . . . . . . . Corruption Blocked . | . . . . . . . . . . . Effects 19 | . . . . . . . . . 16 3 Message Errors 3 | . . . . . . . . . 2 1 Matter Fused 8 | . . . . . . . . . 6 2 Heat Flow Errors 3 | . . . . . . . . . 3 . Parts Rejected 1 | . . . . . . . . . 1 . Parts Fused 1 | . . . . . . . . . 1 . Data Loss (minor) 2 | . . . . . . . . . 2 . Data Loss (major) 1 | . . . . . . . . . 1 . Overload Shots . | . . . . . . . . . . . Overflow Damage 232 | . . . . 96 . . . . . 136 Projectiles . | . . . . . . . . . . . Explosions . | . . . . . . . . . . . Melee 232 | . . . . 96 . . . . . 136 Knockbacks 15 | . . . 2 4 . . 6 . 3 . Impact 9 | . . . . 4 . . 2 . 3 . Kinetic 5 | . . . 2 . . . 3 . . . Secondary 1 | . . . . . . . 1 . . . Self-Inflicted Damage 5 | . 5 . . . . . . . . . Shots 1 | . 1 . . . . . . . . . Rammed 2 | . . 1 . . . . . . . 1 Targets Rammed 2 | . . 1 . . . . . . . 1 Kicked . | . . . . . . . . . . . Crushed . | . . . . . . . . . . . Highest Temperature 434 | . 170 . 4 20 171 . 434 . 422 . Average Temperature 87 | . 51 . 2 10 91 . 184 . 152 . Received Heat Transfer 1030 | . 261 . 69 66 45 . 180 . 385 24 Effects 2 | . . . . . . . 1 . 1 . Shutdowns 1 | . . . . . . . 1 . . . Interference 1 | . . . . . . . . . 1 . Siege Activations . | . . . . . . . . . . . Martial Activations . | . . . . . . . . . . . Shielding Activations . | . . . . . . . . . . . Robots Disrupted . | . . . . . . . . . . . Combat Hostiles . | . . . . . . . . . . . Robots Corrupted 2 | . . . . 2 . . . . . . Combat Hostiles 2 | . . . . 2 . . . . . . Parts Fried 4 | . . . . 3 . . . . . 1 Impact Corruptions 10 | . . . . 7 . . . . 1 2 Robots Melted 2 | . . . . . . . 1 . 1 . Combat Hostiles 2 | . . . . . . . 1 . 1 . Parts Melted 3 | . . . 1 . . . 1 . 1 . Heat Transferred 2044 | . 700 . 444 . 50 . 500 . 350 . Parts Sabotaged . | . . . . . . . . . . . Parts Stolen . | . . . . . . . . . . . Parts Stripped . | . . . . . . . . . . . Power Chain Reactions 1 | . 1 . . . . . . . . . Alert | -11 -10 -10 -10 -9 -6 -6 -6 -6 -5 -5 ------- Run | Yrd Mat Min Sub Scr Fac Low Low Dat Pro Fac Maximum Alert Level 2 | . . . . . . . . . . 2 Low Security (%) 87 | 100 100 100 . . 100 . . . . 59 Level 1 9 | . . . . . . . . . . 30 Level 2 2 | . . . . . . . . . . 9 Level 3 . | . . . . . . . . . . . Level 4 . | . . . . . . . . . . . Level 5 . | . . . . . . . . . . . High Security . | . . . . . . . . . . . Max Security . | . . . . . . . . . . . Peak Influence 461 | 10 115 . . . 66 . . . . 461 Initial . | . . . . . . . . . . . Average 68 | 1 32 . . . 13 . . . . 187 Influence Increases 1744 | 40 248 . 50 . 160 . 140 . 100 1006 Destroy 0b10 Robot/C 660 | . 120 . 40 . 20 . 120 . 80 280 Destroy 0b10 Robot/NC 120 | 40 15 . . . . . . . . 65 Destroy Leader 156 | . 34 . 10 . . . 20 . 20 72 Allied During Kill 112 | . . . . . . . . . . 112 Successful Hack 46 | . 12 . . . 12 . . . . 22 Disable Machine 90 | . . . . . 30 . . . . 60 Anti-Garrison Action 200 | . . . . . . . . . . 200 Destroy Structure 150 | . 22 . . . 8 . . . . 120 Lose Combat Pursuer 210 | . 45 . . . 90 . . . . 75 Influence Decreases 1394 | 40 245 3 50 . 160 . 140 . 100 656 Entered New Map 3 | . . 3 . . . . . . . . Time Decay 1041 | 40 235 . 50 . 160 . 120 . 90 346 Lost Part 210 | . 10 . . . . . 20 . 10 170 Lost Ally 140 | . . . . . . . . . . 140 Squads Dispatched 8 | . 2 1 . . 1 . . . . 4 Investigation 3 | . 1 1 . . . . . . . 1 Extermination 3 | . . . . . 1 . . . . 2 Reinforcement 2 | . 1 . . . . . . . . 1 Assault . | . . . . . . . . . . . Garrison . | . . . . . . . . . . . Intercept . | . . . . . . . . . . . Searches Triggered . | . . . . . . . . . . . Construction Impeded . | . . . . . . . . . . . Haulers Reinforced . | . . . . . . . . . . . Active Scanning Responses . | . . . . . . . . . . . Cargo Convoy Interrupts . | . . . . . . . . . . . Stealth | -11 -10 -10 -10 -9 -6 -6 -6 -6 -5 -5 --------- Run | Yrd Mat Min Sub Scr Fac Low Low Dat Pro Fac Distress Signals 2 | . . . . . . . . . . 2 Communications Jammed . | . . . . . . . . . . . Distress Signals . | . . . . . . . . . . . Times Spotted 78 | . 11 . 9 9 13 . 6 . 4 26 Peak Tracking Total 8 | . 5 . 3 4 5 . 3 . 3 8 Tactical Retreats 9 | . 3 . . . 3 . . . . 3 Traps | -11 -10 -10 -10 -9 -6 -6 -6 -6 -5 -5 ------- Run | Yrd Mat Min Sub Scr Fac Low Low Dat Pro Fac Traps Triggered 3 | . . . . . 1 . . . . 2 Indirectly . | . . . . . . . . . . . Trap Hack Attempts . | . . . . . . . . . . . Triggered . | . . . . . . . . . . . Disarmed . | . . . . . . . . . . . Reprogrammed . | . . . . . . . . . . . Reused . | . . . . . . . . . . . Traps Extracted . | . . . . . . . . . . . Installed . | . . . . . . . . . . . Triggered . | . . . . . . . . . . . Machines | -11 -10 -10 -10 -9 -6 -6 -6 -6 -5 -5 ---------- Run | Yrd Mat Min Sub Scr Fac Low Low Dat Pro Fac Machines Disabled 6 | . . . . . 2 . . . . 4 Max in Single Turn 1 | . . . . . 1 . . . . . Garrison Access 1 | . . . . . . . . . . 1 Machines Repaired . | . . . . . . . . . . . Machines Dismantled . | . . . . . . . . . . . Machines Sabotaged . | . . . . . . . . . . . Overloaded Fab Kills . | . . . . . . . . . . . Hacking | -11 -10 -10 -10 -9 -6 -6 -6 -6 -5 -5 --------- Run | Yrd Mat Min Sub Scr Fac Low Low Dat Pro Fac Machines Accessed 26 | . 2 1 . 10 3 1 1 4 . 4 Terminals 6 | . 2 . . . 2 . . . . 2 Fabricators . | . . . . . . . . . . . Repair Stations . | . . . . . . . . . . . Recycling Units 1 | . . . . . . . . . . 1 Scanalyzers 1 | . . . . . 1 . . . . . Garrison Access 1 | . . . . . . . . . . 1 Total Hacks 152 | . 10 1 . 87 9 1 1 29 . 14 Successful 132 | . 6 1 . 87 2 1 1 29 . 5 Failed 20 | . 4 . . . 7 . . . . 9 Catastrophic 5 | . 1 . . . 2 . . . . 2 Database Lockouts . | . . . . . . . . . . . Manual 26 | . 10 . . . 4 . . . . 12 Terminals 25 | . 10 . . . 6 . . . . 9 Fabricators . | . . . . . . . . . . . Repair Stations . | . . . . . . . . . . . Recycling Units 2 | . . . . . . . . . . 2 Scanalyzers 3 | . . . . . 3 . . . . . Garrison Access 3 | . . . . . . . . . . 3 Terminal Hacks 124 | . 3 1 . 87 1 1 1 29 . 1 Record 98 | . . . . 87 . . . 11 . . Part Schematic 12 | . . . . . . . . 12 . . Robot Schematic 3 | . . . . . . . . 3 . . Prototype ID Bank 3 | . . . . . . . . 3 . . Open Door 3 | . . 1 . . . 1 1 . . . Level Access Points 1 | . . . . . . . . . . 1 Branch Access Points 1 | . 1 . . . . . . . . . Terminal Index 2 | . 1 . . . 1 . . . . . Hauler Manifests 1 | . 1 . . . . . . . . . Fabricator Hacks . | . . . . . . . . . . . Repair Station Hacks . | . . . . . . . . . . . Recycling Unit Hacks . | . . . . . . . . . . . Scanalyzer 1 | . . . . . 1 . . . . . Retrieve Study 1 | . . . . . 1 . . . . . Garrison Access Hacks . | . . . . . . . . . . . Unauthorized Hacks 6 | . 3 . . . . . . . . 3 Terminals 5 | . 3 . . . . . . . . 2 Track 2 | . 1 . . . . . . . . 1 Botnet 2 | . 1 . . . . . . . . 1 Operators 1 | . 1 . . . . . . . . . Fabricators . | . . . . . . . . . . . Repair Stations . | . . . . . . . . . . . Recycling Units . | . . . . . . . . . . . Scanalyzers . | . . . . . . . . . . . Garrison Access 1 | . . . . . . . . . . 1 Jam 1 | . . . . . . . . . . 1 Data Cores Recovered . | . . . . . . . . . . . Used . | . . . . . . . . . . . Hacking Detections 10 | . 2 . . . 3 . . . . 5 Full Trace Events 1 | . 1 . . . . . . . . . Feedback Events . | . . . . . . . . . . . Feedback Blocked . | . . . . . . . . . . . Robot Schematics Acquired 3 | . . . . . . . . 3 . . Robots Built . | . . . . . . . . . . . Authchips . | . . . . . . . . . . . Time . | . . . . . . . . . . . Total Robot Build Rating . | . . . . . . . . . . . Part Schematics Acquired 12 | . . . . . . . . 12 . . Parts Built . | . . . . . . . . . . . Authchips . | . . . . . . . . . . . Time . | . . . . . . . . . . . Total Part Build Rating . | . . . . . . . . . . . Part Studies Acquired 1 | . . . . . 1 . . . . . Parts Repaired . | . . . . . . . . . . . Time . | . . . . . . . . . . . Parts Recycled . | . . . . . . . . . . . Recycled Matter . | . . . . . . . . . . . Retrieved Matter . | . . . . . . . . . . . Retrieved Components . | . . . . . . . . . . . Parts Scanalyzed . | . . . . . . . . . . . Part Schematics Acquired . | . . . . . . . . . . . Parts Damaged . | . . . . . . . . . . . Bothacking | -11 -10 -10 -10 -9 -6 -6 -6 -6 -5 -5 ------------ Run | Yrd Mat Min Sub Scr Fac Low Low Dat Pro Fac Used RIF Installer . | . . . . . . . . . . . Robots Hacked . | . . . . . . . . . . . Non-combat . | . . . . . . . . . . . Combat . | . . . . . . . . . . . Robot Hacks Applied . | . . . . . . . . . . . Relay Couplers Released 4 | . . . . . . . . . . 4 Programmers 4 | . . . . . . . . . . 4 Fabnet Peak Effective % . | . . . . . . . . . . . Robots Rewired . | . . . . . . . . . . . Allies Hacked . | . . . . . . . . . . . Hacks Repelled . | . . . . . . . . . . . Allies | -11 -10 -10 -10 -9 -6 -6 -6 -6 -5 -5 -------- Run | Yrd Mat Min Sub Scr Fac Low Low Dat Pro Fac Total Allies 14 | . . . . . . . . . 4 10 Largest Group 4 | . . . . . . . . . 4 4 Highest-Rated Group 324 | . . . . . . . . . 324 324 Highest-Rated Ally 81 | . . . . . . . . . 81 81 Total Orders . | . . . . . . . . . . . Ally Attacks 120 | . . . . . . . . . . 120 Total Damage 3551 | . . . . . . . . . . 3551 Kills 30 | . . . . . . . . . . 30 Allies Corrupted 1 | . . . . . . . . . . 1 Allies Melted 8 | . . . . 8 . . . . . . Intel | -11 -10 -10 -10 -9 -6 -6 -6 -6 -5 -5 ------- Run | Yrd Mat Min Sub Scr Fac Low Low Dat Pro Fac Active Infowar (turns) 8688 | 176 625 221 1463 2453 685 675 874 94 622 800 Optics 393 | . . . . . . . 176 94 123 . Sensors 1745 | . . . . . 372 675 698 . . . Terrain 3945 | . . . . 321 683 675 764 94 608 800 Structural 1116 | . . . . 909 207 . . . . . Seismic 3934 | 176 625 221 1463 1223 199 . . . . 27 Robot Analysis Total . | . . . . . . . . . . . Derelict Logs Recovered 6 | . . 1 2 2 . . 1 . . . Drone Launches . | . . . . . . . . . . . Drone Recoveries . | . . . . . . . . . . . Exploration | -11 -10 -10 -10 -9 -6 -6 -6 -6 -5 -5 ------------- Run | Yrd Mat Min Sub Scr Fac Low Low Dat Pro Fac Turns Passed 9032 | 362 684 239 1463 2453 685 675 887 94 622 868 Spaces Moved 6437 | 167 335 180 1126 2136 566 511 630 84 139 563 Core 82 | 2 . . . 2 . . . . . 78 Treads 411 | 165 246 . . . . . . . . . Legs 224 | . . . . 102 . . . . 103 19 Wheels 5254 | . 89 180 1126 2032 566 511 630 84 36 . Hover 466 | . . . . . . . . . . 466 Flight . | . . . . . . . . . . . Fastest Speed 50 | 50 125 125 95 95 85 115 113 113 113 50 Average Speed 118 | 158 153 125 115 99 99 115 114 113 333 134 Slowest Speed 1400 | 160 240 125 125 550 125 115 115 113 410 1400 Overloaded Moves . | . . . . . . . . . . . Propulsion Burnouts . | . . . . . . . . . . . Robots Hopped . | . . . . . . . . . . . Potential Cave-ins . | . . . . . . . . . . . Cave-ins Triggered . | . . . . . . . . . . . Exploration Rate (%) 51 | 11 50 57 61 91 18 77 81 74 29 16 Regions Visited 10 Branch Regions 7 Pre-discovered Areas 9 | . . 1 2 5 . . . 1 . . Known Exits Taken 7 | . 1 . . 1 1 1 1 1 1 . Unknown Exits Taken 3 | 1 . 1 1 . . . . . . . Scrap Searched 7 | . . . 2 1 . 1 3 . . . Spaces Dug 66 | . 6 . 48 . 8 1 . . . 3 Terrain Destroyed 177 | . 25 . 140 . 8 1 . . . 3 Melee 12 | . . . . . 8 1 . . . 3 Projectile 6 | . 6 . . . . . . . . . AOE 159 | . 19 . 140 . . . . . . . Terrain Rammed . | . . . . . . . . . . . Walls Destroyed . | . . . . . . . . . . . Machines Disabled . | . . . . . . . . . . . Actions | -11 -10 -10 -10 -9 -6 -6 -6 -6 -5 -5 --------- Run | Yrd Mat Min Sub Scr Fac Low Low Dat Pro Fac Total 7523 | 219 431 195 1199 2424 667 597 776 83 271 661 Wait 631 | 1 2 9 6 209 62 84 101 . 99 58 Move 6427 | 166 334 179 1125 2135 565 510 629 83 138 563 Hop . | . . . . . . . . . . . Pick Up 68 | 11 14 2 4 9 8 1 13 . . 6 Fast Attach 27 | 7 1 . . 6 1 . . . . 12 Attach 21 | . 2 . 4 2 7 . 2 . 2 2 Detach 3 | . 1 . . 2 . . . . . . Swap 48 | 1 11 1 8 8 6 . 7 . 2 4 Drop 52 | 4 9 3 2 16 4 . 6 . . 8 Fire 176 | 29 57 . 48 5 4 . 11 . 22 . Melee 62 | . . . . 30 10 1 6 . 8 7 Ram 2 | . . 1 . . . . . . . 1 Kick . | . . . . . . . . . . . Crush . | . . . . . . . . . . . Escape Stasis . | . . . . . . . . . . . Rewire 6 | . . . 2 2 . 1 1 . . . Trap . | . . . . . . . . . . . Miscellaneous . | . . . . . . . . . . . Route ------- -11/Scrapyard -10/Materials (discovered 4 exits: [*Mat x2] / *Min x2) -10/Mines -10/Subcaves (discovered 2 exits: [*Mat] / *Scr) -9/Scraptown (discovered 2 exits: *Fac x2) -6/Factory (discovered 6 exits: Fac x4 / *Low x2) -6/Lower Caves -6/Lower Caves (discovered 2 exits: *Fac / *Dat) -6/Data Miner -5/Proximity Caves -5/Factory (discovered 4 exits: Fac x4) History --------- Turn | Location | Event 9 | -11/Scrapyard | Discovered new exit (range 15) 363 | -11/Scrapyard | Entered Materials 364 | -10/Materials | Build established: Mutant 566 | -10/Materials | Discovered new exit (range 16) 661 | -10/Materials | Discovered new exit (range 3) 760 | -10/Materials | Discovered new exit (range 16) 791 | -10/Materials | Identified exit to Mines 1047 | -10/Materials | Entered Mines 1197 | -10/Mines | Met a Derelict shopkeep closing up shop 1199 | -10/Mines | Learned location of Zion (-7) 1278 | -10/Mines | Discovered new exit (range 5) 1286 | -10/Mines | Entered Subcaves 1287 | -10/Subcaves | Shifting Twisted Machinery released Sub. Laser 1287 | -10/Subcaves | Approached by a straggling Scientist 1321 | -10/Subcaves | A swath of the cavern ceiling suddenly collapsed 1690 | -10/Subcaves | Ambushed by Subdweller buried in earth 1692 | -10/Subcaves | Ambushed by Subdweller buried in earth 1694 | -10/Subcaves | Ambushed by Subdweller buried in earth 1694 | -10/Subcaves | Ambushed by Subdweller buried in earth 1785 | -10/Subcaves | Shifting Twisted Machinery released Battle Cannon 1789 | -10/Subcaves | Shifting Twisted Machinery released Sub. Power Source 1890 | -10/Subcaves | Learned location of Recycling (-9) 2122 | -10/Subcaves | Discovered new exit (range 14) 2353 | -10/Subcaves | A swath of the cavern ceiling suddenly collapsed 2378 | -10/Subcaves | Visited triangular shrine 2384 | -10/Subcaves | Found Prototype Device 2412 | -10/Subcaves | Learned location of 1 exit from Materials 2424 | -10/Subcaves | Met a Zionite searching for "candidates" 2694 | -10/Subcaves | Ambushed by Subdweller buried in earth 2728 | -10/Subcaves | Shifting Twisted Machinery released Sub. Optics 2741 | -10/Subcaves | Scientist uncovered a shortcut to Scraptown 2749 | -10/Subcaves | Entered Scraptown 2764 | -9/Scraptown | Heard Great Nut preacher, LISTEN AND RECITE! 2923 | -9/Scraptown | Delivered Prototype Device to T0-NE2 in exchange for information 3216 | -9/Scraptown | Visited Spacefarers 3369 | -9/Scraptown | Scanned Subdweller tech in exchange for log data 3372 | -9/Scraptown | Learned Factory interactive machine intel 3387 | -9/Scraptown | Discovered new exit (range 5) 3494 | -9/Scraptown | Visited TADAMA 3518 | -9/Scraptown | Visited Symbiants 3542 | -9/Scraptown | Visited The Evicted 3583 | -9/Scraptown | Visited UFD Registry 3596 | -9/Scraptown | Visited Cyclists 3628 | -9/Scraptown | Visited Awakened 3819 | -9/Scraptown | Registered with UFD as "Kinetisplitter" 3860 | -9/Scraptown | Entered Cyclist Reading Room 3936 | -9/Scraptown | Visited Cartography Club 4213 | -9/Scraptown | Visited LU-1G1's Boring Crew 4330 | -9/Scraptown | Learned location of Extension (-5) 4330 | -9/Scraptown | Learned location of Cetus (-5) 4330 | -9/Scraptown | Learned 12 Materials zone layouts 4330 | -9/Scraptown | Learned 16 Materials zone layouts 4330 | -9/Scraptown | Learned 8 Factory zone layouts 4330 | -9/Scraptown | Learned 12 Factory zone layouts 4330 | -9/Scraptown | Learned 16 Factory zone layouts 4330 | -9/Scraptown | Learned 24 Factory zone layouts 4330 | -9/Scraptown | Learned 12 Research zone layouts 4330 | -9/Scraptown | Learned 16 Upper Caves zone layouts 4330 | -9/Scraptown | Learned 8 Proximity Caves zone layouts 4330 | -9/Scraptown | Learned Factory emergency access door positions 4330 | -9/Scraptown | Learned location of 2 exits from Upper Caves 4330 | -9/Scraptown | Learned location of 2 exits from Proximity Caves 4330 | -9/Scraptown | Identified exit to Factory 4400 | -9/Scraptown | Visited Derelict Rescue Squad 4412 | -9/Scraptown | Found DRS Beacon 4440 | -9/Scraptown | Visited Curators Association 4514 | -9/Scraptown | Found Surveybot 17 Chip 4554 | -9/Scraptown | Visited Junk Repository 4596 | -9/Scraptown | Visited Junk Repository 4711 | -9/Scraptown | Met Optimus 4711 | -9/Scraptown | Accepted into 0bPrime 4765 | -9/Scraptown | Visited Scrap Suit Storage 4772 | -9/Scraptown | Found Scrap Suit 4809 | -9/Scraptown | Visited Botcube Research 4832 | -9/Scraptown | Visited Scrapoid Research Area 4879 | -9/Scraptown | Civil war broke out across Scraptown 5034 | -9/Scraptown | Core integrity fell below 50% 5126 | -9/Scraptown | Optimus destroyed in the chaos of civil war 5200 | -9/Scraptown | Lost 4 allies 5202 | -9/Scraptown | Entered Factory 5202 | -6/Factory | Evolved 8 slots: Propulsion x3, Utility x5 5203 | -6/Factory | Identified exit to Factory 5204 | -6/Factory | Identified exit to Lower Caves 5206 | -6/Factory | Loaded intel: 54 interactive machine locations 5497 | -6/Factory | Build established: Scavenger-Scrapper 5887 | -6/Factory | Entered Lower Caves 6036 | -6/Lower Caves | Build established: Scrapper 6318 | -6/Lower Caves | Discovered new exit (range 16) 6338 | -6/Lower Caves | Identified exit to Lower Caves 6412 | -6/Lower Caves | Encountered a Warlord checkpoint 6441 | -6/Lower Caves | Found Prototype Device 6562 | -6/Lower Caves | Entered another Lower Caves area 6587 | -6/Lower Caves | Discovered exit to Factory (range 17) 6656 | -6/Lower Caves | Learned Factory garrison access intel 6777 | -6/Lower Caves | Prototype Device suddenly appears! 6787 | -6/Lower Caves | Found Prototype Device 7429 | -6/Lower Caves | Discovered new exit (range 18) 7448 | -6/Lower Caves | Identified exit to Data Miner 7449 | -6/Lower Caves | Entered Data Miner 7449 | -6/Data Miner | Discovered new exit (range 6) 7465 | -6/Data Miner | Met Data Miner 7498 | -6/Data Miner | Learned location of Section 7 (-2) 7498 | -6/Data Miner | Acquired the access code to Warlord's prototype stash 7520 | -6/Data Miner | Received God Mode back door access code from Data Miner 7542 | -6/Data Miner | Identified exit to Proximity Caves 7543 | -6/Data Miner | Entered Proximity Caves 7571 | -5/Proximity Caves | Build established: Assassin 7672 | -5/Proximity Caves | Lost 6 parts (1p4n1w) 7688 | -5/Proximity Caves | Identified Amulet of Y3-NDR 7753 | -5/Proximity Caves | Joined by bewildered Wizard 7754 | -5/Proximity Caves | Joined by bewildered Wizard 7755 | -5/Proximity Caves | Joined by bewildered Wizard 7923 | -5/Proximity Caves | Joined by bewildered Wizard 7994 | -5/Proximity Caves | Build established: Mutant 8165 | -5/Proximity Caves | Entered Factory 8165 | -5/Factory | Accompanied by 4 allies 8165 | -5/Factory | Evolved 2 slots: Propulsion x1, Utility x1 8167 | -5/Factory | Loaded intel: 4 garrison access locations 8231 | -5/Factory | Joined by bewildered Wizard 8232 | -5/Factory | Joined by bewildered Wizard 8274 | -5/Factory | Lost 4 allies 8328 | -5/Factory | Joined by bewildered Wizard 8329 | -5/Factory | Joined by bewildered Wizard 8554 | -5/Factory | Joined by bewildered Wizard 8556 | -5/Factory | Joined by bewildered Wizard 8560 | -5/Factory | Build established: Scavenger-Mutant 8904 | -5/Factory | Identified exit to Factory 8928 | -5/Factory | Joined by bewildered Wizard 8928 | -5/Factory | Joined by bewildered Wizard 8979 | -5/Factory | Core integrity fell below 50% 8987 | -5/Factory | Lost 3 allies 8993 | -5/Factory | Released all parts (3) 9002 | -5/Factory | Core integrity fell below 20% 9021 | -5/Factory | Lost 13 parts (1p6n5u1w) 9033 | -5/Factory | Destroyed by exploding Nuclear Reactor Last Messages --------------- 08998_ K-01 Serf cleans the Assembly Bed. 08999_ K-01 Serf collects debris. 08999_ U-05 Engineer lays Concrete. 09000_ K-01 Serf collects debris. 09001_ System corrupted: Matter fused (-5). 09001_ U-05 Engineer lays Concrete. 09003_ R-10 Processor inserts Lgt. Deuterium Engine into recycling unit. 09005_ K-01 Serf cleans the Assembly Bed. 09007_ R-10 Processor inserts Antigrav System into recycling unit. 09007_ Assembly Bed disabled. 09008_ Recycling unit begins recycling process. 09008_ K-01 Serf collects debris. 09018_ System corrupted: Matter fused (-5). 09033_ Nuclear Reactor explodes. 09033_ P-80 Master destroyed. 09033_ P-70 Sage destroyed. 09033_ Nuclear Reactor explodes. [Achievement: This Is Interesting...] Map ----- +----------------------------------------------------+ | ????????????????????????????##?? """?""" ## | | ????????????????????????????### ?"""""" ## | | ?????????????????????????? ### """"""" ## | | ?????????????????????????" ### """"""" ## | | ?????????????????????????"? ### ## | | ????????????????????????? ### """"""" ## | | ????????????????????????####### """"""" ## | | ?????????????????????????###### """"""" ## | | ???????????????????????######## """"""" + | | ???????????????????????#?###### ## | | ??????????????????????####################### | | ??????????????????????####################### | | ??????????????????????### ###### ## | | ??????????????????????? + ###### T | | ??????????????????????### ###### ### ### | | ??????????????????????### ####### #### ### | | ?????????????????????#?################## #### ### | | ???????????????????###################### ####/### | | ???????????????????# ############### ## | | ???????????????????# """ ############### ## | | ???????????????????# """ ############### ## " | | ???????????????????# """ ############### ## " | | ???????????????????# # = ######### ## " | | ???????????????????# ######### ## % | | ???????????????????#* " ######### " | | ???????????????????# @ ######### #" " | | ????????????? ! |% ######### ## | | ?????????? [[[ ########## ## % " | | ??????????? [[ [ ########## ## " | | ??????????? [[ % x ##########H## ! ! | | ???????????? ##########/######## | | ????????????Y####### x######### % [![===! | | ???????????????????# h ###" %|=*!%[ | | ???????????????????#### ! / !=[ != | | ??????????????????????# !!! !=## %= | | ??????????????????????# !! H!%## "== | | ??????????????????????# !! !## #*! | | ??????????????????????# !# | # ! | | ??????????????????????# "#""###/## | | ??????????????????????# % =* | | ??????????????????????### """""" %! = | | ???????????????????????## """""" %!== | | ????????????????????????# """""" % *=% | | ????????????????????????# """" %% =% | | ????????????????????????# #"" """!#! % | | ????????????????????????# # [#* | | ????????????????????????# # !! # | | ????????????????????????# "Y" + % !! # | | ????????????????????????# """ # # | | ????????????????????????# # "" "" # | +----------------------------------------------------+ Best States ------------- Heat Dissipation 59 Energy Generation 21 Energy Capacity 315 Matter Stores 300 Matter Capacity 300 Sight Range 21 Robot Scan Range 15 Terrain Scan Range 20 Terrain Scan Density 1210 Corruption Block 14 Armor Coverage 150 Resistance: TH 10 Evasion (%) 55 Recoil Reduction 2 Offensive Hacking 11 Item Schematics ----------------- Combat Drone Bay | -6/Data Miner | Free Lgt. Regenerative Plating | -6/Data Miner | Free Exp. Cesium-ion Thruster | -6/Data Miner | Free Prc. Matter Filter | -6/Data Miner | Free Cld. Plasma Rifle | -6/Data Miner | Free Imp. Linear Gravjet | -6/Data Miner | Free Graphene Brace | -6/Data Miner | Free Hvy. Disruptor Cannon | -6/Data Miner | Free Mass Driver | -6/Data Miner | Free Adv. Datajack | -6/Data Miner | Free Nova Cannon | -6/Data Miner | Free Biometal Leg | -6/Data Miner | Free Robot Schematics ------------------ B-48 Gladiator | -6/Data Miner | Free R-10 Processor | -6/Data Miner | Free H-66 Slayer | -6/Data Miner | Free Fabricated ------------ Nothing Repaired ---------- Nothing Studied --------- Arm. Huge Wheel | -6/Factory | Hacked Alien Tech Used ----------------- None Achievements -------------- Bob, First Of His Name Civilization 2243 Do Not Disturb Link The Feds Live, Flee, And Rebuild Nice Directions, Buddy Rodney's Helpers This Is Interesting... Uncivil War Challenges ------------ None Game ------ Seed ShieldLongswordBattery Manual? 0 Play Time 01:42:58 Cumulative 47.3 hours Start 2026.04.13 @ 23:33:21 End 2026.04.14 @ 23:06:12 Sessions 3 Manual Loads 0 Difficulty Rogue Special Mode None Game No. 59 Rogue 59 Adventurer 0 Explorer 0 Win Type - Total 0 Types 0/0/0/0/0/0/0/0/0/0 Lore% 25 Gallery% 33 Achievement% 27 Wizard Run 0 Options --------- Layout 2 ASCII 0 Keyboard 0 Movement Numpad Keybinds 1 Fullscreen 1 Font 24/Smallcaps Map View 50x44 Zoom Use 0% Tactical HUD 1 Map Filters NONE Filters NONE Steam 1 RUN: a0b7e3c7-e472-411c-bb96-91d7528555c0